bitfinex-derivatives/quotes_ETHF0:USTF0_20260128
["timestamp","ask_amount","ask_price","bid_price","bid_amount"]
[1769565987730,2.11192,3017.5,3016.3,0.15579313]
[1769565988534,2.11192,3017.5,3016.3,0.16003727]
[1769565990528,0.01617332,3017.4,3016.3,0.16003727]
[1769565993635,0.10533928,3016.9,3016.3,0.00424414]
[1769565993839,0.10533928,3016.9,3015.9,0.16145695]
[1769565994837,0.10533928,3016.9,3015.9,0.16385963]
[1769565995736,0.14416042,3017.2,3015.9,0.16385963]
[1769565995940,2.084,3017.2,3015.9,0.16385963]
[1769565996139,0.14416042,3017.1,3015.9,0.16385963]
[1769565996534,0.14416042,3017.0,3015.9,0.16385963]
[1769565996841,0.14416042,3016.9,3015.9,0.00240268]
[1769565997026,0.14416042,3016.9,3015.9,0.16454142]
[1769565998343,0.16595,3017.0,3015.9,0.16454142]
[1769565998843,0.14416042,3017.5,3015.9,0.16454142]
[1769565999041,0.14416042,3016.9,3015.9,0.16454142]
[1769566001745,0.14416042,3016.8,3015.9,0.16454142]
[1769566002045,0.14416042,3016.7,3015.9,0.16454142]
[1769566005548,0.14416042,3016.7,3015.9,0.00240268]
[1769566007650,2.097,3016.6,3015.9,0.18627531]
[1769566013948,2.24116042,3016.6,3015.9,0.18627531]
[1769566014350,0.14416042,3016.5,3015.0,0.19213363]
[1769566015248,0.14416042,3016.5,3015.0,0.19451901]
[1769566017956,0.44873294,3016.4,3015.0,0.19451901]
[1769566020657,0.44873294,3016.3,3015.0,0.19451901]
[1769566020955,0.44873294,3016.1,3015.0,0.19451901]
[1769566022355,0.44873294,3016.0,3015.0,0.19451901]
[1769566022654,0.45186423,3016.0,3015.0,0.19451901]
[1769566024656,0.44873294,3015.7,3015.0,0.19451901]
[1769566024857,0.44873294,3015.7,3014.3,7.26972673]
[1769566025051,0.44873294,3015.7,3014.4,0.44800976]
[1769566025352,0.44873294,3015.6,3014.4,0.44800976]
[1769566025551,0.44873294,3015.5,3014.4,0.44800976]
[1769566025754,0.44873294,3015.3,3014.4,0.45190545]
[1769566025953,0.44873294,3015.2,3014.4,0.00389569]
[1769566029258,0.44873294,3015.2,3013.7,0.44800976]
[1769566029459,0.44873294,3014.7,3013.4,0.44800976]
[1769566029654,0.44873294,3014.5,3013.0,0.44800976]
[1769566030349,0.44873294,3014.5,3013.0,0.45104125]
[1769566030859,0.44873294,3014.4,3013.0,0.45104125]
[1769566031262,0.61482294,3014.4,3013.0,0.45104125]
[1769566031556,0.44873294,3014.3,3013.0,0.45104125]
[1769566033366,1.948,3014.6,3013.0,0.45104125]
[1769566033662,0.44873294,3014.5,3013.0,0.45104125]
[1769566034258,1.948,3014.6,3013.0,0.45104125]
[1769566036965,2.11408,3014.6,3013.0,0.45104125]
[1769566037356,2.56281294,3014.6,3013.0,0.45104125]
[1769566037858,0.16608,3014.6,3013.0,0.45104125]
[1769566039362,0.44873294,3014.8,3013.0,0.45104125]
[1769566039866,2.11405,3015.2,3013.2,0.44800976]
[1769566040058,0.44873294,3015.1,3013.2,0.44800976]
[1769566040263,0.44873294,3015.1,3013.3,0.44800976]
[1769566040456,2.11405,3015.2,3013.3,0.44800976]
[1769566041567,2.11405,3015.2,3013.4,0.44800976]
[1769566041863,2.11405,3015.2,3013.5,0.44800976]
[1769566042065,2.11405,3015.2,3013.6,0.44800976]
[1769566046068,0.78265279,3015.1,3013.6,0.44800976]
[1769566047067,0.94870279,3015.1,3013.6,0.44800976]
[1769566047369,1.948,3015.2,3013.6,0.44800976]
[1769566047370,0.78265279,3014.9,3013.6,0.44800976]
[1769566047573,0.94873279,3014.7,3013.1,0.74187373]
[1769566050670,0.78265279,3014.7,3013.1,0.74187373]
[1769566051966,0.78265279,3014.7,3013.1,0.90803373]
[1769566052469,0.78265279,3015.1,3013.3,0.74187373]
[1769566053075,0.78265279,3015.1,3013.3,0.90802373]
[1769566053272,0.78265279,3014.3,3013.0,0.74490522]
[1769566053576,0.94875279,3014.3,3013.0,0.00303149]
[1769566054472,0.78265279,3014.1,3013.0,0.00303149]
[1769566054663,0.78265279,3013.7,3012.2,0.74187373]
[1769566054875,0.78265279,3013.5,3011.9,0.74187373]
[1769566055075,0.94879279,3013.5,3011.9,0.74187373]
[1769566055373,0.78265279,3013.3,3011.3,0.74187373]
[1769566055577,0.78265279,3013.1,3011.3,0.74456107]
[1769566057473,0.00396253,3013.3,3011.0,0.61909172]
[1769566057474,0.5829632,3011.9,3011.0,0.61909172]
[1769566057662,0.58008005,3012.5,3011.1,0.74187373]
[1769566057869,0.58008005,3012.5,3011.2,0.74187373]
[1769566058471,0.58008005,3012.5,3011.2,0.74547532]
[1769566058873,0.59873419,3012.2,3011.0,0.61909172]
[1769566059378,0.5951326,3012.1,3011.0,0.61909172]
[1769566059866,0.5951326,3012.1,3011.0,0.6223664]
[1769566061174,0.5951326,3012.1,3011.0,1.36424013]
[1769566062176,0.63579254,3012.0,3011.0,0.6223664]
[1769566062382,0.01342614,3011.6,3010.4,0.94758883]
[1769566062578,0.01342614,3011.5,3010.5,1.949]
[1769566062981,0.01342614,3011.5,3010.5,2.89683586]
[1769566063171,0.01342614,3011.5,3010.6,0.94783586]
[1769566063478,0.01342614,3011.5,3010.6,0.95096106]
[1769566063779,0.16625,3011.6,3010.6,0.95096106]
[1769566064166,0.16625,3011.6,3010.7,2.89835077]
[1769566064372,0.16625,3011.6,3010.7,0.94935077]
[1769566064672,0.16625,3011.6,3010.6,1.9521252]
[1769566064673,0.0530237,3011.6,3010.6,1.9521252]
[1769566065266,0.0530237,3011.6,3010.6,0.0031252]
[1769566065472,0.0530237,3011.6,3010.6,1.9521252]
[1769566066172,0.0530237,3011.6,3010.6,2.90185255]
[1769566066574,0.16626,3011.3,3010.6,2.90185255]
[1769566066881,0.16626,3011.3,3010.6,0.95285255]
[1769566067273,0.0530237,3011.6,3010.6,0.95285255]
[1769566067477,0.11468308,3012.2,3010.6,0.95285255]
[1769566068379,0.1345371,3011.9,3010.7,5.273]
[1769566068580,0.16626,3011.3,3010.7,5.273]
[1769566068970,0.16626,3011.3,3010.7,6.22353506]
[1769566070777,0.24761918,3012.0,3010.8,0.92374118]
[1769566070979,0.16626,3011.4,3010.8,0.92374118]
[1769566071483,0.24761918,3012.0,3010.8,0.92374118]
[1769566072885,0.16627,3011.2,3010.8,0.92374118]
[1769566073080,0.16627,3011.1,3010.8,0.92374118]
[1769566073281,0.16925943,3011.1,3010.7,0.93535453]
[1769566073791,0.26325825,3011.8,3010.7,0.93535453]
[1769566074888,0.26627248,3011.8,3010.7,0.93535453]
[1769566075186,0.16627,3011.2,3010.7,0.93535453]
[1769566075881,0.26627248,3011.8,3010.7,0.93535453]
[1769566076590,0.16627,3011.2,3010.7,0.93535453]
[1769566077483,0.26627248,3011.8,3010.7,0.93535453]
[1769566077789,0.16628,3011.0,3010.7,0.93535453]
[1769566078688,0.26627248,3011.8,3010.7,0.93535453]
[1769566079884,0.16628,3011.0,3010.7,0.93535453]
[1769566080484,0.00301423,3011.8,3010.7,0.93535453]
[1769566080691,41.40116089,3012.9,3010.7,0.93535453]
[1769566080894,0.16622,3012.1,3010.7,0.93535453]
[1769566081184,0.60116089,3012.7,3010.7,0.93535453]
[1769566081392,40.8,3012.9,3010.9,0.97977897]
[1769566081393,0.16624,3011.7,3010.9,0.97977897]
[1769566081689,0.16956736,3011.7,3010.9,0.97977897]
[1769566081888,0.71999714,3012.8,3010.9,0.97977897]
[1769566082082,3.46164292,3012.7,3010.9,0.97977897]
[1769566082285,0.16623,3011.8,3010.9,0.97977897]
[1769566082484,0.16623,3011.8,3011.1,0.97977897]
[1769566082786,0.17030475,3011.8,3011.1,0.97977897]
[1769566083291,0.16621,3012.2,3011.1,0.97977897]
[1769566083485,0.16622,3012.1,3011.1,0.97977897]
[1769566084185,0.16992043,3012.1,3011.1,0.97977897]
[1769566086194,0.98262289,3013.0,3011.1,0.97977897]
[1769566086390,0.1662,3012.4,3011.1,0.97977897]
[1769566086594,0.16621,3012.3,3011.3,0.97977897]
[1769566087188,0.17007924,3012.3,3011.3,0.97977897]
[1769566088895,0.17007924,3012.3,3011.5,0.97977897]
[1769566091593,0.17007924,3012.3,3010.6,0.0031252]
[1769566091594,0.17007924,3012.3,3011.7,0.97977897]
[1769566094498,0.98262289,3013.0,3011.7,0.97977897]
[1769566094799,0.16618,3012.7,3011.7,0.97977897]
[1769566095096,3.47430094,3012.6,3011.7,0.97977897]
[1769566095600,3.47819325,3012.6,3011.7,0.97977897]
[1769566095800,0.00389231,3012.6,3011.7,0.97977897]
[1769566097501,0.17008231,3012.6,3011.7,0.97977897]
[1769566098603,0.17008231,3012.6,3011.9,0.97977897]
[1769566099500,0.98262289,3013.2,3011.9,0.97977897]
[1769566099702,0.16619,3012.6,3011.9,0.97977897]
[1769566100505,40.8,3013.3,3011.9,0.97977897]
[1769566100706,0.16617,3013.0,3011.9,0.97977897]
[1769566101708,0.16988116,3013.0,3011.9,0.97977897]
[1769566102311,0.00371116,3013.0,3011.9,0.97977897]
[1769566102802,0.16614,3013.5,3011.9,0.97977897]
[1769566103903,0.16615,3013.3,3012.1,0.97977897]
[1769566106604,0.16615,3013.3,3012.3,1.26336406]
[1769566107501,0.16615,3013.3,3012.5,1.26336406]
[1769566107705,0.00427377,3013.5,3012.5,1.26336406]
[1769566107905,3.44529597,3013.4,3012.5,1.26336406]
[1769566108114,0.16612,3013.8,3012.5,1.26336406]
[1769566108311,3.44567652,3013.7,3012.7,1.26336406]
[1769566108506,0.16612,3013.8,3012.7,1.26336406]
[1769566108712,3.44585501,3013.7,3012.7,1.26336406]
[1769566109101,0.16612,3013.8,3012.7,1.26336406]
[1769566109306,3.44587605,3013.7,3012.7,1.26336406]
[1769566109507,0.16612,3013.8,3012.7,1.26336406]
[1769566109705,3.44635918,3013.7,3012.7,1.26336406]
[1769566110008,3.44691374,3013.6,3012.7,1.26336406]
[1769566110207,0.16910739,3013.8,3012.7,1.26336406]
[1769566110401,3.44691682,3013.7,3012.7,1.26336406]
[1769566110598,3.44691682,3013.6,3012.7,1.26336406]
[1769566110802,0.16910739,3013.8,3012.7,1.26336406]
[1769566111007,3.44628633,3013.7,3012.7,1.26336406]
[1769566111202,3.44628633,3013.6,3012.7,1.26336406]
[1769566111410,0.16910739,3013.8,3012.7,1.26336406]
[1769566111610,3.4457086,3013.7,3012.7,1.26336406]
[1769566111811,3.4457086,3013.6,3012.7,1.26336406]
[1769566112010,0.16910739,3013.8,3012.7,1.26336406]
[1769566112207,3.44487723,3013.7,3012.7,1.26336406]
[1769566112409,2.02775791,3013.6,3012.7,1.26336406]
[1769566112709,1.50348307,3013.8,3012.7,1.26336406]
[1769566114107,0.16910739,3013.8,3012.7,1.26336406]
[1769566114612,0.00298739,3013.8,3012.7,1.26336406]
[1769566115212,1.33736307,3013.8,3012.7,1.26336406]
[1769566115415,1.33736307,3013.8,3012.8,1.949]
[1769566115614,1.33736307,3013.8,3012.8,1.95152075]
[1769566116012,1.33736307,3013.8,3012.8,3.21488481]
[1769566116515,1.33736307,3013.8,3012.8,1.26588481]
[1769566116713,1.33736307,3013.8,3012.9,1.26336406]
[1769566116916,1.33736307,3013.8,3013.0,1.949]
[1769566117414,0.00298739,3013.8,3013.1,1.26336406]
[1769566119120,1.45398523,3014.2,3013.1,1.26336406]
[1769566120111,1.45716308,3014.2,3013.1,1.26336406]
[1769566121018,1.45716308,3014.2,3013.2,1.949]
[1769566121316,1.45716308,3014.2,3013.1,1.26336406]
[1769566121518,1.45716308,3014.2,3013.1,1.949]
[1769566124013,1.45716308,3014.2,3013.1,3.42652583]
[1769566124212,1.62009523,3014.1,3013.1,3.42652583]
[1769566124517,1.62009523,3014.1,3013.1,1.47752583]
[1769566124717,1.62010523,3013.9,3013.1,1.949]
[1769566126119,1.62010523,3013.9,3013.2,1.47752583]
[1769566126414,0.16612,3013.9,3013.2,1.47752583]
[1769566134026,0.16612,3013.9,3013.3,1.47752583]
[1769566140833,0.00317785,3014.2,3013.3,1.47752583]
[1769566142131,0.00317785,3014.2,3013.5,1.1537121]
[1769566146527,1.21349683,3014.2,3013.5,1.1537121]
[1769566146732,1.21349683,3014.2,3013.6,1.948]
[1769566147236,1.21031898,3015.0,3013.7,1.1537121]
[1769566147437,1.21031898,3014.6,3013.7,1.1537121]
[1769566148028,1.21031898,3014.6,3013.7,3.1017121]
[1769566148337,1.21334249,3014.6,3013.7,3.1017121]
[1769566148635,1.21334249,3014.6,3013.8,1.1537121]
[1769566153437,0.00302351,3014.6,3013.8,1.1537121]
[1769566153737,1.21334249,3014.6,3013.8,1.1537121]
[1769566155543,1.21031898,3014.4,3013.7,1.948]
[1769566155934,1.21031898,3014.2,3013.0,1.00427386]
[1769566156133,1.21031898,3014.2,3013.2,1.948]
[1769566156639,1.21031898,3014.2,3013.2,2.95227386]
[1769566157035,1.21031898,3014.2,3013.3,0.9775595]
[1769566159037,1.37641898,3014.2,3013.3,0.9775595]
[1769566159340,1.37641898,3014.2,3013.2,1.948]
[1769566160640,1.37641898,3014.2,3013.1,0.94773606]
[1769566160842,1.37641898,3014.2,3013.1,1.948]
[1769566161544,1.21031898,3014.0,3013.0,1.948]
[1769566161743,1.21031898,3014.0,3013.0,2.83956698]
[1769566162336,1.21031898,3014.0,3013.1,0.89156698]
[1769566162538,1.37642898,3014.0,3013.1,0.89156698]
[1769566166542,0.86650757,3013.8,3012.9,5.95589106]
[1769566166741,0.86650757,3013.8,3012.9,1.948]
[1769566167045,0.86650757,3013.6,3012.8,0.00252075]
[1769566168641,0.86650757,3013.4,3012.8,0.00252075]
[1769566178955,0.16614,3013.5,3012.8,0.56544886]
[1769566181560,0.86650757,3013.6,3012.8,0.56544886]
[1769566181759,0.86650757,3014.0,3012.8,0.56544886]
[1769566186469,0.16611,3014.1,3012.8,0.56544886]
[1769566186973,1.03261757,3014.1,3012.8,0.56544886]
[1769566188369,1.03261757,3014.1,3012.9,2.41909591]
[1769566190580,1.03261757,3014.1,3012.9,0.46509591]
[1769566190780,1.03261757,3014.1,3013.0,2.39894897]
[1769566193178,0.86650757,3014.1,3013.0,2.39894897]
[1769566196888,0.86650757,3014.1,3013.1,1.961]
[1769566199903,0.86650757,3014.1,3012.9,0.35853046]
[1769566200190,0.86650757,3014.1,3013.0,1.962]
[1769566200888,0.86650757,3014.1,3013.1,1.962]
[1769566202292,0.62642581,3013.9,3012.8,0.00252075]
[1769566202488,4.05139844,3013.8,3012.8,0.00252075]
[1769566202688,0.62642581,3013.7,3012.8,0.00252075]
[1769566204193,0.79255581,3013.7,3012.8,0.00252075]
[1769566204397,0.62642581,3013.4,3012.1,5.95589106]
[1769566204592,0.62642581,3013.2,3011.9,5.95589106]
[1769566204893,0.62642581,3013.2,3012.0,1.962]
[1769566205484,0.62642581,3013.2,3012.0,1.96460182]
[1769566207593,0.62642581,3013.2,3012.1,1.965]
[1769566208796,0.62642581,3013.2,3012.1,2.1606144]
[1769566208997,0.62642581,3013.2,3012.2,0.1956144]
[1769566209996,0.16615,3013.3,3012.2,0.1956144]
[1769566210701,0.79257581,3013.3,3012.2,0.1956144]
[1769566212000,0.16615,3013.3,3012.2,0.1956144]
[1769566212595,0.79257581,3013.3,3012.2,0.1956144]
[1769566212795,0.62642581,3013.2,3012.3,1.968]
[1769566213990,0.62642581,3013.2,3012.3,2.12760516]
[1769566214195,0.62642581,3013.2,3012.4,0.15960516]
[1769566217603,0.62642581,3013.2,3012.5,2.10598512]
[1769566218897,0.62642581,3013.8,3012.5,2.10598512]
[1769566219102,0.62642581,3013.8,3012.6,0.12789042]
[1769566221490,0.62642581,3014.4,3012.6,0.12789042]
[1769566221897,0.62642581,3014.4,3012.7,0.0892204]
[1769566225898,0.62642581,3014.4,3012.8,0.03173781]
[1769566227802,0.62642581,3014.4,3012.9,5.31412163]
[1769566228006,0.62642581,3014.4,3013.0,0.01312163]
[1769566231908,0.62642581,3014.4,3013.2,0.16615]
[1769566232210,0.62642581,3014.4,3013.3,6.12204106]
[1769566232603,0.62642581,3014.4,3013.4,0.16614]
[1769566232913,0.00302351,3014.6,3013.5,0.16614]
[1769566233215,0.00302351,3014.6,3013.6,1.989]
[1769566234512,0.49866406,3014.6,3013.6,1.989]
[1769566240029,0.49866406,3014.6,3013.7,3.322]
[1769566243813,0.49866406,3014.6,3013.7,3.48813]
[1769566244017,0.00050276,3014.6,3013.7,3.48813]
[1769566248624,0.49564055,3015.4,3013.7,3.48813]
[1769566249624,0.49908712,3015.4,3013.7,3.48813]
[1769566251524,0.49908712,3015.4,3013.8,0.16612]
[1769566254714,0.49908712,3015.4,3013.9,5.343]
[1769566257325,0.49908712,3015.4,3013.9,11.29889106]
[1769566260420,0.49908712,3015.4,3014.0,5.95589106]
[1769566260626,0.49908712,3015.4,3014.1,2.039]
[1769566265529,0.49908712,3015.4,3014.2,2.041]
[1769566265729,0.49908712,3015.4,3014.2,2.04528191]
[1769566266621,0.49908712,3015.4,3014.4,5.95589106]
[1769566272126,0.49908712,3015.4,3014.5,2.056]
[1769566272328,0.49908712,3015.4,3014.5,8.01189106]
[1769566272634,0.49908712,3015.4,3014.6,5.95589106]
[1769566273135,0.49908712,3015.4,3014.7,2.059]
[1769566278045,0.49908712,3015.4,3014.5,5.95589106]
[1769566278243,0.49908712,3015.4,3014.6,2.082]
[1769566278439,0.49908712,3015.4,3014.7,2.083]
[1769566278643,0.49908712,3015.4,3014.8,2.084]
[1769566282148,0.49908712,3015.4,3014.2,5.96017297]
[1769566282351,0.49908712,3015.4,3014.3,2.092]
[1769566283647,0.49908712,3015.4,3014.3,8.04789106]
[1769566285352,0.49908712,3015.4,3014.3,2.092]
[1769566286548,0.00344657,3015.4,3014.3,2.092]
[1769566286744,0.00344657,3015.4,3014.5,5.95589106]
[1769566286949,0.00344657,3015.4,3014.6,5.95589106]
[1769566287451,0.47550941,3015.6,3014.6,5.95589106]
[1769566287652,0.47476549,3016.2,3014.6,6.12197106]
[1769566288142,0.47476549,3016.2,3014.7,6.12196106]
[1769566288346,0.47829614,3016.2,3014.7,6.12196106]
[1769566288848,0.47829614,3016.2,3014.9,0.16606]
[1769566289148,0.00353065,3016.2,3015.2,5.95589106]
[1769566289456,0.00353065,3016.2,3015.3,3.32]
[1769566289754,0.00353065,3016.2,3015.3,9.27589106]
[1769566289947,0.46894004,3017.4,3015.7,0.16601]
[1769566290146,0.46894004,3017.4,3015.8,2.114]
[1769566290955,0.47199402,3017.4,3015.8,2.114]
[1769566295057,0.47199402,3017.4,3015.9,5.267]
[1769566295449,0.47199402,3017.4,3016.0,1.947]
[1769566295646,0.47199402,3017.4,3015.7,0.16601]
[1769566295851,0.47199402,3017.4,3015.8,5.267]
[1769566296051,0.47199402,3017.4,3015.9,2.114]
[1769566296559,0.47199402,3017.4,3016.0,2.114]
[1769566303265,0.47199402,3017.4,3015.6,0.16602]
[1769566303469,0.47199402,3017.4,3015.7,5.266]
[1769566304368,0.47199402,3017.4,3015.6,0.16602]
[1769566304570,0.47199402,3017.4,3015.7,5.266]
[1769566304868,0.47199402,3017.4,3015.8,5.432]
[1769566305370,0.47199402,3017.4,3015.8,5.59801]
[1769566306277,0.47199402,3017.4,3015.8,5.432]
[1769566306567,0.00305398,3017.4,3015.9,5.95589106]
[1769566306771,0.00305398,3017.4,3016.0,5.95589106]
[1769566307565,0.00305398,3017.4,3016.4,0.16598]
[1769566307764,0.00305398,3017.4,3016.4,0.16998647]
[1769566310173,0.46694602,3017.4,3016.4,0.16998647]
[1769566310971,0.46694602,3017.4,3016.5,5.436]
[1769566312176,0.46694602,3017.4,3016.4,0.00400647]
[1769566312874,0.46432803,3017.2,3016.4,0.00400647]
[1769566313079,0.46432803,3017.1,3015.6,6.455]
[1769566313272,0.46432803,3017.1,3015.7,2.119]
[1769566313581,0.46430655,3016.9,3015.1,9.27489106]
[1769566313782,0.46430655,3016.9,3015.6,2.121]
[1769566313979,0.46430655,3016.8,3015.6,2.1250724]
[1769566314477,0.46430655,3016.8,3015.6,0.0040724]
[1769566316184,0.47188345,3016.7,3015.3,0.434]
[1769566317280,0.47188345,3016.7,3015.3,0.43673815]
[1769566317779,0.46953366,3016.6,3015.3,0.43673815]
[1769566319784,0.46525707,3016.5,3015.3,0.43673815]
[1769566319982,0.46525707,3016.4,3015.3,0.43673815]
[1769566320689,0.46447569,3016.2,3015.3,0.43673815]
[1769566321885,0.26074122,3015.9,3014.5,5.95589106]
[1769566322087,0.26074122,3015.6,3014.3,5.95589106]
[1769566322279,0.26074122,3015.6,3014.0,0.02988352]
[1769566323278,0.26074122,3015.6,3014.0,0.03343374]
[1769566324578,0.26074122,3015.6,3014.1,2.126]
[1769566325088,0.26074122,3015.4,3014.0,0.03343374]
[1769566325282,0.26074122,3015.4,3014.1,2.127]
[1769566325986,0.26074122,3015.4,3014.1,2.15776843]
[1769566326980,0.26074122,3015.4,3014.1,0.03076843]
[1769566327187,0.26074122,3015.4,3014.1,2.15776843]
[1769566330286,0.26074122,3015.4,3014.0,0.00355022]
[1769566331483,0.42678122,3015.4,3014.0,0.00355022]
[1769566331688,0.42679122,3015.2,3014.0,0.00355022]
[1769566331981,0.26074122,3014.9,3014.0,0.00355022]
[1769566332175,0.26074122,3014.8,3013.5,0.27058421]
[1769566333086,0.26074122,3014.8,3013.5,0.27358824]
[1769566333285,0.26074122,3014.8,3013.5,0.00300403]
[1769566341999,0.26074122,3014.6,3013.5,0.00300403]
[1769566343200,0.26074122,3014.4,3013.0,0.27058421]
[1769566343899,0.26074122,3014.2,3013.0,0.27058421]
[1769566344296,0.26074122,3014.2,3013.0,0.27460265]
[1769566347600,0.67814749,3014.1,3013.0,0.00401844]
[1769566349401,0.84425749,3014.1,3012.5,0.63631338]
[1769566349602,0.67814749,3013.9,3012.5,0.63631338]
[1769566350600,0.67814749,3013.9,3012.5,0.63914357]
[1769566353409,0.84428749,3013.5,3011.9,0.63631338]
[1769566354415,0.84428749,3013.5,3011.9,0.64013501]
[1769566356519,0.67814749,3013.5,3011.9,0.64013501]
[1769566356819,0.67814749,3013.7,3012.2,0.63631338]
[1769566357323,0.67814749,3013.9,3012.3,0.63631338]
[1769566360421,0.67814749,3013.9,3012.4,0.63631338]
[1769566363624,0.67814749,3013.9,3012.7,0.63631338]
[1769566371134,0.67814749,3013.7,3012.1,6.59220444]
[1769566371337,0.67814749,3013.7,3012.2,0.63631338]
[1769566373929,0.16613,3013.6,3012.0,6.59220444]
[1769566374132,0.67814749,3013.5,3012.0,0.63631338]
[1769566377736,0.67814749,3013.5,3012.2,1.23262539]
[1769566380338,0.67814749,3013.5,3012.3,1.23262539]
[1769566382240,1.22626971,3013.8,3012.3,1.23262539]
[1769566382632,1.22626971,3013.8,3012.4,1.23262539]
[1769566382838,1.39237971,3014.1,3012.6,1.23262539]
[1769566384752,1.39237971,3014.1,3013.6,1.85274375]
[1769566385241,1.22626971,3014.1,3013.6,1.85274375]
[1769566385742,1.22626971,3014.3,3014.0,0.4801531]
[1769566393249,1.22626971,3014.6,3014.0,0.4801531]
[1769566393447,1.22626971,3014.6,3014.0,0.06576955]
[1769566393846,1.22626971,3014.6,3013.4,1.23262539]
[1769566394046,1.22626971,3014.6,3012.6,3.323]
[1769566394047,1.22626971,3014.6,3013.5,1.85274375]
[1769566400650,1.39234971,3014.6,3013.5,1.85274375]
[1769566403361,1.22626971,3014.4,3013.1,1.85274375]
[1769566403553,1.22626971,3014.0,3013.1,1.85274375]
[1769566403849,1.22626971,3013.8,3013.1,1.85274375]
[1769566404655,1.22626971,3013.8,3012.7,1.85274375]
[1769566404853,1.22626971,3013.8,3012.8,1.55415135]
[1769566414265,1.22626971,3013.8,3013.0,1.55415135]
[1769566417168,1.60986893,3014.1,3013.0,1.55415135]
[1769566443307,1.60986893,3014.1,3013.1,1.78313629]
[1769566446809,0.1661,3014.3,3013.1,1.78313629]
[1769566447009,8.27335667,3015.0,3013.1,1.78313629]
[1769566447010,1.79710428,3014.6,3013.1,1.78313629]
[1769566447202,1.79710428,3014.6,3013.2,1.78313629]
[1769566447897,1.79710428,3014.6,3013.3,1.78313629]
[1769566450809,1.79710428,3014.6,3013.4,1.78313629]
[1769566460006,1.79710428,3015.1,3013.4,1.78313629]
[1769566460208,1.79710428,3014.9,3013.5,1.78313629]
[1769566460409,1.79710428,3014.9,3013.7,1.78313629]
[1769566461516,1.79710428,3014.6,3013.4,5.95589106]
[1769566461816,1.79710428,3014.6,3013.3,1.78313629]
[1769566467616,1.79710428,3014.6,3013.4,2.08887696]
[1769566469729,1.79710428,3014.6,3013.7,1.85281017]
[1769566470423,1.9354376,3015.1,3014.2,2.08887696]
[1769566470633,1.9354376,3015.1,3014.2,2.0913932]
[1769566474130,2.1014876,3015.1,3014.2,0.00251624]
[1769566475129,1.9354376,3014.9,3014.2,0.00251624]
[1769566475431,1.9354376,3014.7,3013.6,2.08887696]
[1769566475633,1.9354376,3014.5,3013.6,2.08887696]
[1769566476434,1.9354376,3014.5,3013.6,2.09265362]
[1769566498847,1.9354376,3014.5,3013.6,0.00377666]
[1769566499146,1.9354376,3014.5,3013.6,2.19267352]
[1769566500752,1.9354376,3014.5,3013.6,0.00377666]
[1769566500753,1.89116155,3014.5,3013.6,0.00377666]
[1769566502244,2.05725155,3014.5,3013.6,0.00377666]
[1769566502453,3.41843334,3014.4,3013.6,0.00377666]
[1769566502651,0.16609,3014.5,3013.6,0.00377666]
[1769566502851,2.06518563,3014.3,3013.6,0.00377666]
[1769566506955,2.06518563,3014.1,3013.3,1.85281017]
[1769566507951,2.06518563,3014.1,3013.3,1.8563913]
[1769566508452,2.06518563,3014.1,3013.3,0.00358113]
[1769566508656,2.23129563,3014.1,3013.3,0.00358113]
[1769566509963,2.06518563,3013.9,3013.3,0.00358113]
[1769566510162,2.06518563,3013.9,3013.3,1.8563913]
[1769566513365,2.06518563,3013.9,3012.9,1.85281017]
[1769566514069,2.06518563,3013.9,3012.7,2.18889686]
[1769566514460,2.06518563,3013.9,3012.7,2.19127852]
[1769566515270,2.06518563,3013.9,3012.9,1.85281017]
[1769566515472,2.23130563,3013.9,3012.9,4.04170703]
[1769566518274,2.23130563,3013.9,3013.0,2.18889686]
[1769566521971,2.23130563,3013.9,3012.9,1.85281017]
[1769566524871,2.23130563,3013.9,3012.9,4.10970047]
[1769566525179,2.23130563,3013.9,3013.3,1.85281017]
[1769566527181,2.23130563,3013.9,3013.0,2.2568903]
[1769566528782,2.22086948,3013.7,3013.0,2.2568903]
[1769566528985,5.06386948,3013.6,3012.8,2.2568903]
[1769566529284,2.22086948,3013.5,3012.7,0.00238166]
[1769566529485,2.22086948,3013.3,3012.7,0.00238166]
[1769566530187,2.38701948,3013.3,3012.3,2.2568903]
[1769566531287,2.38701948,3013.3,3012.3,2.2595879]
[1769566533283,0.16615,3013.3,3012.3,2.2595879]
[1769566537589,5.06386948,3013.6,3012.3,2.2595879]
[1769566537890,2.22086948,3013.5,3012.3,2.2595879]
[1769566538592,2.843,3013.6,3012.3,2.2595879]
[1769566542093,0.16613,3013.7,3012.3,2.2595879]
[1769566542292,0.16613,3013.7,3012.4,2.2568903]
[1769566543695,5.07486948,3014.1,3012.4,2.2568903]
[1769566543891,5.07486948,3014.1,3012.7,2.2568903]
[1769566544093,5.07486948,3014.1,3012.8,2.2568903]
[1769566545090,46.34386948,3014.5,3012.8,4.11030964]
[1769566545298,5.54386948,3014.5,3013.0,2.2568903]
[1769566545595,3.323,3014.5,3013.0,2.2568903]
[1769566546890,2.22086948,3014.4,3013.1,2.2568903]
[1769566548596,3.323,3014.5,3013.1,2.2568903]
[1769566548799,3.323,3014.5,3013.2,2.2568903]
[1769566548996,3.323,3014.5,3013.3,2.2568903]
[1769566550101,5.54386948,3014.5,3013.3,2.2568903]
[1769566550703,2.22086948,3014.4,3013.3,2.2568903]
[1769566555204,2.22086948,3014.4,3013.0,5.95589106]
[1769566555205,2.22086948,3014.4,3013.0,8.20536392]
[1769566555401,2.22086948,3014.4,3013.0,2.24947286]
[1769566563008,3.48909,3014.5,3013.0,2.24947286]
[1769566563309,5.74796792,3014.5,3013.0,2.24947286]
[1769566563608,2.25887792,3014.4,3013.0,2.24947286]
[1769566572411,3.42208649,3014.3,3013.0,2.24947286]
[1769566572616,2.25887792,3014.4,3013.0,2.24947286]
[1769566572808,5.68096556,3014.3,3013.0,2.24947286]
[1769566573007,2.25887792,3014.3,3013.0,2.24947286]
[1769566577517,2.25887792,3014.3,3013.1,5.95589106]
[1769566577719,2.25887792,3014.3,3013.2,2.24947286]
[1769566578707,2.25887792,3014.7,3013.3,2.195]
[1769566579012,2.25887792,3015.0,3013.5,2.24947286]
[1769566581620,2.25887792,3015.4,3013.8,2.24947286]
[1769566581826,2.25887792,3015.4,3014.0,8.37147392]
[1769566582117,2.25887792,3015.4,3014.2,2.24947286]
[1769566582626,2.25887792,3016.0,3014.2,2.24947286]
[1769566582826,2.25887792,3015.8,3014.2,2.24947286]
[1769566583122,2.263182,3015.8,3014.2,2.24947286]
[1769566584629,0.00430408,3015.8,3014.5,2.12028978]
[1769566584821,0.00430408,3015.8,3014.5,2.28998174]
[1769566586719,2.23334712,3015.8,3014.5,2.28998174]
[1769566587734,2.23334712,3015.8,3014.5,2.12390174]
[1769566589520,2.23334712,3015.8,3014.8,1.85107569]
[1769566590022,2.23334712,3015.8,3014.8,3.97136547]
[1769566590631,2.23334712,3015.8,3014.8,1.85107569]